fUST/lending_fUST_20240121
["ID","MTS","AMOUNT","RATE_DAILY","PERIOD"]
[312316872,1705770639957,-73786.79108432,0.00030914,6]
[312316873,1705770639967,-14774.18796865,0.00030914,4]
[312316874,1705770639978,-804.30099363,0.00030914,4]
[312316875,1705770639987,-500.0,0.00030958,2]
[312316876,1705770639996,-472.84579192,0.00030995,2]
[312316877,1705770640005,-160.0,0.00030999,10]
[312316878,1705770640015,-238.14143998,0.00031,4]
[312316879,1705770640024,-360086.45608435,0.00031,2]
[312316880,1705770640033,-500.0,0.00031095,2]
[312316881,1705770640041,-500.0,0.00031232,2]
[312316882,1705770640050,-167.452556,0.00031233,2]
[312316883,1705770640059,-500.0,0.00031369,2]
[312316884,1705770640068,-243.81344,0.00031409,2]
[312316885,1705770640077,-150.0,0.00031499,2]
[312316886,1705770640087,-500.0,0.00031506,2]
[312316887,1705770640096,-500.0,0.00031643,2]
[312316888,1705770640105,-500.0,0.0003178,2]
[312316889,1705770640115,-161.085393,0.00031849,2]
[312316890,1705770640125,-16265.572705,0.000319,3]
[312316891,1705770640135,-500.0,0.00031917,2]
[312316892,1705770640144,-25432.7654734,0.00032,4]
[312316893,1705770640153,-283.12887752,0.00032,3]
[312316894,1705770640166,-980.8946807,0.00032,4]
[312316895,1705770640175,-4321.29306998,0.00032,4]
[312316897,1705770640184,-351.009366,0.00032,4]
[312316899,1705770640194,-154.78330338,0.00032,4]
[312316901,1705770640203,-195.24830445,0.00032,4]
[312316904,1705770640212,-200.37400988,0.00032,2]
[312316906,1705770640222,-154.95351395,0.00032,2]
[312316908,1705770640231,-155.07458334,0.00032,4]
[312316910,1705770640241,-72510.68387019,0.00032,14]
[312316912,1705770640254,-3384.45749752,0.00032,14]
[312316914,1705770640265,-8655.41024733,0.00032,14]
[312316916,1705770640274,-1026.09234423,0.00032,2]
[312316917,1705770640284,-2797.25249162,0.00032,4]
[312316918,1705770640293,-155.51025165,0.00032,4]
[312316919,1705770640303,-150.0,0.00032,2]
[312316920,1705770640312,-620.00008454,0.0003201,2]
[312316921,1705770640321,-500.0,0.00032054,2]
[312316922,1705770640331,-243.81344,0.0003229,2]
[312316923,1705770640340,-151.0,0.00032324,2]
[312316924,1705770640349,-610.89509616,0.00032368,2]
[312316925,1705770640358,-339.29373379,0.00032368,2]
[312316926,1705770640367,-9953.08956561,0.00032368,2]
[312316927,1705770640376,-1094.47895322,0.000325,20]
[312316928,1705770640385,-500.0,0.00032876,7]
[312316929,1705770640394,-333.35337669,0.00032876,7]
[312316930,1705770640404,-500.0,0.00032876,7]
[312316931,1705770640413,-412.73110727,0.00032876,7]
[312316932,1705770640422,-500.0,0.00032876,7]
[312316933,1705770640431,-500.0,0.00032876,7]
[312316934,1705770640440,-500.0,0.00032876,7]
[312316935,1705770640450,-240.34005209,0.00032876,7]
[312316936,1705770640459,-500.0,0.00032876,7]
[312316937,1705770640468,-644.69057081,0.00032876,7]
[312316938,1705770640477,-225.48750872,0.00032876,7]
[312316939,1705770640487,-500.0,0.00032876,7]
[312316940,1705770640496,-500.0,0.00032876,7]
[312316941,1705770640505,-500.0,0.00032876,7]
[312316942,1705770640514,-500.0,0.00032876,7]
[312316943,1705770640523,-500.0,0.00032876,7]
[312316944,1705770640532,-500.0,0.00032876,7]
[312316945,1705770640541,-500.0,0.00032876,7]
[312316946,1705770640551,-500.0,0.00032876,7]
[312316947,1705770640560,-500.0,0.00032876,7]
[312316948,1705770640569,-500.0,0.00032876,7]
[312316949,1705770640579,-500.0,0.00032876,7]
[312316950,1705770640588,-500.0,0.00032876,7]
[312316951,1705770640597,-500.0,0.00032876,7]
[312316953,1705770640606,-213.68377547,0.00032876,7]
[312316955,1705770640615,-500.0,0.00032876,7]
[312316956,1705770640623,-300.0,0.00032876,7]
[312316957,1705770640632,-194.69057081,0.00032876,7]
[312316958,1705770640641,-300.0,0.00032876,7]
[312316959,1705770640650,-513.68377547,0.00032876,7]
[312316960,1705770640659,-500.0,0.00032876,7]
[312316961,1705770640668,-160.2333769,0.00032876,7]
[312316962,1705770640677,-319.60703988,0.00032876,7]
[312316963,1705770640686,-336.55399654,0.00032876,7]
[312316964,1705770640695,-500.0,0.00032876,7]
[312316965,1705770640705,-300.0,0.00032876,7]
[312316966,1705770640714,-300.0,0.00032876,7]
[312316967,1705770640723,-300.0,0.00032876,7]
[312316969,1705770640732,-180.0,0.00032876,7]
[312316970,1705770640741,-300.0,0.00032876,7]
[312316972,1705770640750,-300.0,0.00032876,7]
[312316973,1705770640759,-250.0,0.00032876,7]
[312316974,1705770640768,-6763.78500734,0.00033,4]
[312316975,1705770640777,-2846.05665284,0.00033,2]
[312316976,1705770640786,-154.78330338,0.00033,4]
[312316977,1705770640795,-160.0,0.00033,2]
[312316978,1705770640805,-171.0,0.00033,2]
[312316979,1705770640814,-212.0,0.00033,2]
[312316980,1705770640823,-212.0,0.00033,2]
[312316981,1705770640831,-160.0,0.00033151,2]
[312316982,1705770640840,-243.81344,0.0003317,2]
[312316983,1705770640849,-155.0,0.0003325,2]
[312316984,1705770640858,-161.085393,0.0003339,2]
[312316985,1705770640866,-170.091916,0.00033558,2]
[312316986,1705770640875,-151.0,0.00033649,2]
[312316987,1705770640884,-167.452556,0.00033699,2]
[312316988,1705770640893,-171.79662836,0.00034,7]
[312316989,1705770640902,-10990.39266955,0.00034,2]
[312316990,1705770640911,-243.81344,0.00034051,2]
[312316991,1705770640920,-150.0,0.00034111,2]
[312316992,1705770640930,-150.0,0.00034111,2]
[312316993,1705770640938,-243.452,0.00034111,2]
[312316994,1705770640947,-620.00167761,0.00034144,2]
[312316995,1705770640957,-500.0,0.00034246,7]
[312316996,1705770640966,-160.0,0.00034521,2]
[312316997,1705770640975,-155.0,0.0003462,2]
[312316998,1705770640984,-206.98036634,0.000349,2]
[312316999,1705770640993,-161.085393,0.00034932,2]
[312317000,1705770641002,-243.81344,0.00034932,2]
[312317001,1705770641012,-151.0,0.00034974,2]
[312317002,1705770641022,-650.59132824,0.00035,4]
[312317003,1705770641031,-154.78330338,0.00035,4]
[312317004,1705770641041,-548.14664073,0.00035,7]
[312317005,1705770641050,-3119.96924767,0.00035,20]
[312317006,1705770641060,-333.12649891,0.00035,4]
[312317007,1705770641069,-154.78330338,0.00035,6]
[312317008,1705770641078,-2085.08363542,0.00035,4]
[312317009,1705770641088,-500.9855552,0.00035,10]
[312317010,1705770641097,-201.71762558,0.00035,2]
[312317012,1705770641107,-201.73776914,0.00035,2]
[312317014,1705770641115,-87973.75692622,0.00035049,2]
[312317015,1705770641124,-500.0,0.000353,7]
[312317016,1705770641134,-750.0,0.00035616,7]
[312317017,1705770641143,-182.36949,0.00035616,120]
[312317018,1705770641152,-201.71762558,0.000357,2]
[312317019,1705770641165,-201.73776914,0.000357,2]
[312317020,1705770641174,-243.81344,0.00035812,2]
[312317021,1705770641183,-5000.0,0.00035956,2]
[312317022,1705770641192,-155.0,0.0003599,2]
[312317023,1705770641202,-318.0,0.00036,120]
[312317024,1705770641211,-212.0,0.00036,2]
[312317025,1705770641221,-212.0,0.00036,2]
[312317026,1705770641231,-167.452556,0.00036164,2]
[312317027,1705770641243,-160.81104418,0.00036205,2]
[312317028,1705770641252,-162.0,0.00036247,2]
[312317029,1705770641261,-151.0,0.00036299,4]
[312317030,1705770641270,-201.71762558,0.000364,2]
[312317031,1705770641279,-201.73776914,0.000364,2]
[312317032,1705770641288,-161.085393,0.00036473,2]
[312317033,1705770641298,-243.81344,0.00036693,2]
[312317034,1705770641307,-154.78330338,0.000369,7]
[312317035,1705770641316,-1025.15306119,0.00036984,2]
[312317036,1705770641325,-1000.0,0.00036986,7]
[312317037,1705770641335,-154.78330338,0.00037,4]
[312317038,1705770641344,-150.0,0.00037,30]
[312317039,1705770641354,-242.0611507,0.000371,5]
[312317040,1705770641363,-242.08532297,0.000371,5]
[312317041,1705770641373,-150.0,0.00037111,2]
[312317042,1705770641383,-150.0,0.00037111,2]
[312317043,1705770641392,-150.0,0.000372,30]
[312317044,1705770641401,-302.0,0.0003726,2]
[312317045,1705770641410,-300.0,0.0003726,2]
[312317046,1705770641419,-155.0,0.0003736,2]
[312317047,1705770641429,-212.642763,0.000374,30]
[312317048,1705770641438,-243.81344,0.00037573,2]
[312317049,1705770641447,-151.0,0.00037624,4]
[312317050,1705770641456,-150.78889555,0.0003776,2]
[312317051,1705770641465,-263.47411674,0.000378,5]
[312317052,1705770641474,-242.08532297,0.000378,5]
[312317053,1705770641483,-500.0,0.00038,15]
[312317054,1705770641493,-2139.23248446,0.00038,4]
[312317055,1705770641502,-3679.38300141,0.00038,4]
[312317056,1705770641511,-1000.0,0.00038,38]
[312317057,1705770641521,-161.085393,0.00038014,2]
[312317058,1705770641530,-1250.0,0.00038356,7]
[312317059,1705770641539,-301.57779109,0.00038395,4]
[312317060,1705770641548,-243.81344,0.00038454,2]
[312317061,1705770641558,-282.29590057,0.000385,8]
[312317062,1705770641566,-167.452556,0.0003863,2]
[312317063,1705770641575,-155.0,0.0003873,2]
[312317064,1705770641584,-151.0,0.00038949,4]
[312317065,1705770641594,-1000.0,0.00039,39]
[312317066,1705770641603,-2276.39654398,0.00039,5]
[312317067,1705770641612,-212.0,0.00039,2]
[312317068,1705770641621,-603.15558218,0.0003904,7]
[312317069,1705770641630,-243.81344,0.00039335,2]
[312317070,1705770641639,-5000.0,0.00039541,7]
[312317071,1705770641648,-5000.0,0.00039541,7]
[312317072,1705770641658,-161.085393,0.00039555,2]
[312317073,1705770641667,-245.17457541,0.000396,30]
[312317074,1705770641676,-166.76045536,0.00039696,4]
[312317075,1705770641685,-1500.0,0.00039726,7]
[312317076,1705770641695,-160.0,0.00039871,14]
[312317077,1705770641704,-206.98036634,0.000399,2]
[312317078,1705770641714,-5769.07722314,0.0003999,4]
[312317079,1705770641724,-154.78330338,0.0004,4]
[312317080,1705770641733,-154.78330338,0.0004,7]
[312317081,1705770641742,-1279.9341791,0.0004,4]
[312317082,1705770641751,-482.7577173,0.0004,30]
[312317083,1705770641859,-290.53429954,0.0004,4]
[312317084,1705770641869,-500.0,0.0004,10]
[312317085,1705770641878,-249.35630735,0.0004,2]
[312317086,1705770641889,-738.23836783,0.0004,2]
[312317087,1705770641898,-1845.46619047,0.0004,4]
[312317088,1705770641907,-299.65506824,0.0004,2]
[312317089,1705770641916,-5000.0,0.0004,2]
[312317090,1705770641925,-517.49938136,0.0004,5]
[312317091,1705770641934,-719.57029108,0.0004,2]
[312317092,1705770641943,-18893.38699722,0.0004,15]
[312317093,1705770641952,-2717.25590153,0.0004,2]
[312317094,1705770641962,-1285.9363722,0.0004,2]
[312317095,1705770641971,-16210.00302709,0.0004,10]
[312317096,1705770641981,-168.25252747,0.0004,2]
[312317097,1705770641990,-1000.0,0.0004,40]
[312317098,1705770642000,-150.0,0.0004,32]
[312317099,1705770642010,-1206.31116437,0.00040028,30]
[312317100,1705770642019,-263.54542461,0.000401,2]
[312317101,1705770642028,-150.0,0.00040111,2]
[312317102,1705770642038,-156.965518,0.00040133,2]
[312317103,1705770642047,-154.993163,0.00040133,2]
[312317104,1705770642056,-243.81344,0.00040215,2]
[312317105,1705770642065,-333.2863,0.00040227,7]
[312317106,1705770642075,-151.0,0.00040274,21]
[312317107,1705770642084,-200.0,0.000405,4]
[312317108,1705770642093,-1500.0,0.000407,3]
[312317109,1705770642102,-159.57600549,0.00040783,30]
[312317110,1705770642111,-5000.0,0.00040956,4]
[312317111,1705770642121,-555.69536749,0.00040961,10]
[312317112,1705770642130,-555.69536749,0.00040962,10]
[312317113,1705770642140,-555.69536749,0.00040983,10]
[312317114,1705770642151,-1455.91236555,0.00040988,2]
[312317115,1705770642162,-276000.0,0.00040993,2]
[312317116,1705770642171,-151.0,0.00040993,2]
[312317117,1705770642181,-151.0,0.00040993,2]
[312317118,1705770642190,-151.0,0.00040993,2]
[312317119,1705770642200,-151.0,0.00040993,2]
[312317120,1705770642210,-357.313658,0.00040993,2]
[312317121,1705770642218,-357.313658,0.00040993,2]
[312317122,1705770642228,-151.725022,0.00040993,2]
[312317123,1705770642237,-4643.801269,0.00040993,2]
[312317124,1705770642246,-4643.801269,0.00040993,2]
[312317125,1705770642256,-555.69536749,0.00040999,10]
[312317126,1705770642266,-500.0,0.00041,30]
[312317127,1705770642276,-305.59076867,0.00041,4]
[312317128,1705770642286,-23104.86657698,0.00041,10]
[312317129,1705770642295,-4497.59440094,0.00041,10]
[312317130,1705770642305,-10326.37001279,0.00041,10]
[312317131,1705770642315,-7304.91750841,0.00041,2]
[312317132,1705770642324,-1000.0,0.00041,41]
[312317133,1705770642334,-1237.72817795,0.00041093,4]
[312317134,1705770642343,-7101.78707942,0.00041093,4]
[312317135,1705770642352,-323.65791744,0.00041093,4]
[312317136,1705770642362,-1380.92043617,0.00041093,4]
[312317137,1705770642371,-592.4338243,0.00041093,30]
[312317138,1705770642381,-4425.50824305,0.00041093,14]
[312317139,1705770642391,-425.21360235,0.00041093,2]
[312317140,1705770642400,-31980.30894113,0.00041093,4]
[312317141,1705770642410,-1578.81727872,0.00041093,4]
[312317142,1705770642420,-2822.8788174,0.00041094,4]
[312317143,1705770642430,-830.18439258,0.00041094,2]
[312317144,1705770642439,-500.0,0.00041095,31]
[312317145,1705770642449,-500.0,0.00041095,31]
[312317146,1705770642458,-200.47269668,0.00041095,31]
[312317147,1705770642467,-500.0,0.00041095,31]
[312317148,1705770642476,-500.0,0.00041095,31]
[312317149,1705770642486,-500.0,0.00041095,7]
[312317150,1705770642495,-500.0,0.00041095,31]
[312317151,1705770642505,-350.98770712,0.00041095,31]
[312317152,1705770642515,-500.0,0.00041095,7]
[312317153,1705770642524,-500.0,0.00041095,31]
[312317154,1705770642533,-298.25141498,0.00041095,31]
[312317155,1705770642543,-500.0,0.00041095,31]
[312317156,1705770642552,-517.3988449,0.00041095,31]
[312317157,1705770642562,-443.41846203,0.00041095,3]
[312317158,1705770642570,-501.35538288,0.00041095,31]
[312317159,1705770642580,-1089.14,0.00041095,31]
[312317160,1705770642590,-500.0,0.00041095,31]
[312317162,1705770642599,-500.0,0.00041095,31]
[312317163,1705770642608,-500.0,0.00041095,31]
[312317165,1705770642617,-220.0,0.00041095,2]
[312317167,1705770642626,-500.0,0.00041095,31]
[312317168,1705770642635,-500.0,0.00041095,31]
[312317170,1705770642645,-500.0,0.00041095,31]
[312317172,1705770642654,-503.81675631,0.00041095,31]
[312317174,1705770642663,-500.0,0.00041095,31]
[312317177,1705770642672,-500.0,0.00041095,31]
[312317179,1705770642682,-212.68094512,0.00041095,31]
[312317181,1705770642691,-500.0,0.00041095,31]
[312317184,1705770642700,-527.86052604,0.00041095,31]
[312317185,1705770642710,-500.0,0.00041095,31]
[312317186,1705770642719,-500.0,0.00041095,2]
[312317187,1705770642728,-507.85197413,0.00041095,31]
[312317190,1705770642737,-335.69574307,0.00041095,31]
[312317192,1705770642747,-500.0,0.00041095,31]
[312317194,1705770642757,-579.89252272,0.00041095,31]
[312317196,1705770642766,-500.0,0.00041095,31]
[312317198,1705770642775,-617.74617135,0.00041095,31]
[312317200,1705770642784,-500.0,0.00041095,31]
[312317201,1705770642793,-500.0,0.00041095,31]
[312317202,1705770642803,-500.0,0.00041095,31]
[312317203,1705770642812,-500.0,0.00041095,31]
[312317204,1705770642821,-500.0,0.00041095,31]
[312317205,1705770642831,-1427.62,0.00041095,31]
[312317206,1705770642840,-500.0,0.00041095,31]
[312317207,1705770642849,-738.56,0.00041095,31]
[312317208,1705770642859,-500.0,0.00041095,31]
[312317209,1705770642869,-500.0,0.00041095,31]
[312317210,1705770642878,-257.87098016,0.00041095,31]
[312317211,1705770642887,-428.12595652,0.00041095,2]
[312317212,1705770642897,-500.0,0.00041095,31]
[312317213,1705770642907,-500.0,0.00041095,31]
[312317214,1705770642916,-500.0,0.00041095,31]
[312317215,1705770642926,-500.0,0.00041095,31]
[312317216,1705770642935,-529.40393585,0.00041095,31]
[312317217,1705770642944,-500.0,0.00041095,31]
[312317218,1705770642954,-500.0,0.00041095,31]
[312317219,1705770642963,-500.0,0.00041095,31]
[312317220,1705770642973,-461.65658071,0.00041095,31]
[312317221,1705770642983,-500.58664242,0.00041095,31]
[312317222,1705770642992,-508.92749129,0.00041095,31]
[312317223,1705770643002,-500.0,0.00041095,31]
[312317224,1705770643011,-500.0,0.00041095,31]
[312317225,1705770643020,-500.0,0.00041095,31]
[312317226,1705770643029,-500.0,0.00041095,31]
[312317227,1705770643039,-286.49158774,0.00041095,31]
[312317228,1705770643050,-500.0,0.00041095,31]
[312317229,1705770643059,-500.0,0.00041095,31]
[312317231,1705770643069,-525.93641845,0.00041095,31]
[312317232,1705770643079,-500.0,0.00041095,31]
[312317233,1705770643088,-510.20441833,0.00041095,31]
[312317234,1705770643097,-501.6771907,0.00041095,31]
[312317235,1705770643107,-500.19662977,0.00041095,31]
[312317236,1705770643116,-500.0,0.00041095,31]
[312317237,1705770643125,-529.24302427,0.00041095,31]
[312317238,1705770643134,-500.0,0.00041095,31]
[312317239,1705770643143,-500.0,0.00041095,31]
[312317240,1705770643152,-501.80852807,0.00041095,31]
[312317241,1705770643166,-500.0,0.00041095,31]
[312317242,1705770643176,-500.0,0.00041095,31]
[312317243,1705770643185,-156.89388993,0.00041095,31]
[312317244,1705770643194,-500.0,0.00041095,31]
[312317245,1705770643204,-511.43936969,0.00041095,31]
[312317246,1705770643214,-500.0,0.00041095,31]
[312317247,1705770643224,-500.0,0.00041095,31]
[312317248,1705770643233,-500.57631301,0.00041095,31]
[312317249,1705770643243,-500.0,0.00041095,31]
[312317250,1705770643253,-500.0,0.00041095,31]
[312317251,1705770643262,-274.60791599,0.00041095,31]
[312317252,1705770643271,-500.0,0.00041095,31]
[312317253,1705770643280,-500.0,0.00041095,31]
[312317254,1705770643290,-1000.0,0.00041095,2]
[312317255,1705770643299,-500.0,0.00041095,31]
[312317256,1705770643308,-1009.53,0.00041095,7]
[312317257,1705770643317,-507.16567858,0.00041095,31]
[312317258,1705770643327,-500.0,0.00041095,31]
[312317259,1705770643336,-1140.46,0.00041095,31]
[312317260,1705770643345,-500.0,0.00041095,31]
[312317261,1705770643355,-500.0,0.00041095,31]
[312317262,1705770643365,-355.8903666,0.00041095,31]
[312317263,1705770643375,-500.0,0.00041095,31]
[312317264,1705770643384,-500.0,0.00041095,31]
[312317265,1705770643394,-500.0,0.00041095,31]
[312317266,1705770643403,-685.46,0.00041095,31]
[312317267,1705770643412,-500.0,0.00041095,31]
[312317268,1705770643422,-500.0,0.00041095,31]
[312317269,1705770643431,-500.0,0.00041095,31]
[312317270,1705770643441,-500.0,0.00041095,31]
[312317271,1705770643449,-500.0,0.00041095,31]
[312317272,1705770643459,-500.0,0.00041095,31]
[312317273,1705770643470,-500.0,0.00041095,31]
[312317274,1705770643479,-500.0,0.00041095,31]
[312317275,1705770643488,-500.0,0.00041095,31]
[312317276,1705770643497,-501.20567299,0.00041095,31]
[312317277,1705770643507,-500.0,0.00041095,31]
[312317278,1705770643516,-500.0,0.00041095,31]
[312317279,1705770643526,-747.09,0.00041095,31]
[312317280,1705770643535,-500.0,0.00041095,31]
[312317281,1705770643544,-500.0,0.00041095,7]
[312317282,1705770643553,-500.0,0.00041095,31]
[312317283,1705770643564,-531.82829894,0.00041095,31]
[312317284,1705770643573,-236.4865911,0.00041095,31]
[312317285,1705770643583,-500.0,0.00041095,31]
[312317286,1705770643592,-585.23056528,0.00041095,31]
[312317287,1705770643602,-500.0,0.00041095,31]
[312317288,1705770643612,-500.0,0.00041095,31]
[312317289,1705770643623,-500.0,0.00041095,31]
[312317290,1705770643632,-500.0,0.00041095,31]
[312317291,1705770643643,-503.49905887,0.00041095,31]
[312317292,1705770643653,-500.0,0.00041095,31]
[312317293,1705770643662,-500.0,0.00041095,31]
[312317294,1705770643673,-500.0,0.00041095,31]
[312317295,1705770643684,-504.34519429,0.00041095,31]
[312317296,1705770643695,-500.0,0.00041095,31]
[312317297,1705770643704,-500.0,0.00041095,31]
[312317298,1705770643715,-500.0,0.00041095,31]
[312317299,1705770643727,-405.39244157,0.00041095,31]
[312317300,1705770643738,-476.23695225,0.00041095,31]
[312317301,1705770643748,-500.0,0.00041095,31]
[312317302,1705770643759,-500.0,0.00041095,31]
[312317303,1705770643769,-500.0,0.00041095,31]
[312317304,1705770643779,-500.0,0.00041095,31]
[312317305,1705770643790,-501.04974228,0.00041095,31]
[312317306,1705770643800,-576.56811558,0.00041095,31]
[312317307,1705770643810,-500.0,0.00041095,31]
[312317308,1705770643820,-1202.86,0.00041095,31]
[312317309,1705770643831,-500.0,0.00041095,31]
[312317310,1705770643841,-195.80960312,0.00041095,31]
[312317311,1705770643850,-624.18017065,0.00041095,31]
[312317312,1705770643860,-500.0,0.00041095,31]
[312317313,1705770643870,-1000.0,0.00041095,2]
[312317314,1705770643879,-500.0,0.00041095,31]
[312317315,1705770643889,-500.0,0.00041095,31]
[312317316,1705770643899,-500.0,0.00041095,31]
[312317317,1705770643908,-1200.76,0.00041095,31]
[312317318,1705770643918,-500.0,0.00041095,31]
[312317319,1705770643927,-704.37,0.00041095,31]
[312317320,1705770643936,-463.77481618,0.00041095,31]
[312317321,1705770643946,-500.0,0.00041095,31]
[312317322,1705770643957,-602.26375247,0.00041095,31]
[312317323,1705770643966,-500.0,0.00041095,31]
[312317324,1705770643975,-500.0,0.00041095,31]
[312317325,1705770643985,-500.0,0.00041095,31]
[312317326,1705770643994,-500.0,0.00041095,31]
[312317327,1705770644003,-500.0,0.00041095,31]
[312317328,1705770644012,-500.0,0.00041095,31]
[312317329,1705770644022,-500.0,0.00041095,31]
[312317330,1705770644031,-500.0,0.00041095,31]
[312317331,1705770644041,-500.0,0.00041095,31]
[312317332,1705770644050,-500.0,0.00041095,31]
[312317333,1705770644059,-500.0,0.00041095,31]
[312317334,1705770644068,-500.0,0.00041095,31]
[312317335,1705770644078,-206.47800846,0.00041095,31]
[312317336,1705770644087,-500.0,0.00041095,31]
[312317337,1705770644096,-500.0,0.00041095,31]
[312317338,1705770644105,-500.0,0.00041095,31]
[312317339,1705770644115,-500.0,0.00041095,31]
[312317340,1705770644124,-500.0,0.00041095,14]
[312317341,1705770644133,-500.0,0.00041095,31]
[312317342,1705770644238,-500.0,0.00041095,31]
[312317343,1705770644248,-500.0,0.00041095,31]
[312317344,1705770644257,-500.0,0.00041095,31]
[312317345,1705770644266,-500.0,0.00041095,31]
[312317346,1705770644276,-364.89747126,0.00041095,31]
[312317347,1705770644285,-500.0,0.00041095,31]
[312317348,1705770644294,-500.0,0.00041095,31]
[312317349,1705770644304,-500.0,0.00041095,31]
[312317350,1705770644313,-423.84561802,0.00041095,31]
[312317351,1705770644321,-709.09,0.00041095,31]
[312317352,1705770644330,-500.0,0.00041095,31]
[312317353,1705770644340,-500.0,0.00041095,31]
[312317354,1705770644349,-350.59862491,0.00041095,31]
[312317355,1705770644359,-500.0,0.00041095,31]
[312317356,1705770644368,-500.0,0.00041095,31]
[312317357,1705770644377,-569.43507713,0.00041095,31]
[312317358,1705770644386,-500.0,0.00041095,31]
[312317359,1705770644395,-711.36,0.00041095,31]
[312317360,1705770644405,-500.0,0.00041095,31]
[312317361,1705770644414,-500.0,0.00041095,31]
[312317362,1705770644423,-506.03749354,0.00041095,31]
[312317363,1705770644433,-579.29254274,0.00041095,31]
[312317364,1705770644442,-602.77792774,0.00041095,31]
[312317365,1705770644451,-500.0,0.00041095,31]
[312317366,1705770644460,-500.0,0.00041095,31]
[312317367,1705770644469,-500.0,0.00041095,31]
[312317368,1705770644478,-500.0,0.00041095,31]
[312317369,1705770644487,-500.0,0.00041095,31]
[312317370,1705770644496,-500.0,0.00041095,31]
[312317371,1705770644506,-500.0,0.00041095,31]
[312317372,1705770644515,-500.0,0.00041095,31]
[312317373,1705770644524,-421.05617268,0.00041095,31]
[312317374,1705770644533,-667.38,0.00041095,31]
[312317375,1705770644542,-500.0,0.00041095,31]
[312317376,1705770644551,-500.0,0.00041095,31]
[312317377,1705770644560,-500.0,0.00041095,31]
[312317378,1705770644570,-500.0,0.00041095,31]
[312317379,1705770644579,-463.23684118,0.00041095,31]
[312317380,1705770644587,-500.0,0.00041095,31]
[312317381,1705770644596,-500.0,0.00041095,31]
[312317382,1705770644605,-500.0,0.00041095,31]
[312317383,1705770644615,-197.49198378,0.00041095,31]
[312317384,1705770644623,-205.28134914,0.00041095,31]
[312317385,1705770644633,-708.55,0.00041095,31]
[312317386,1705770644642,-604.4,0.00041095,31]
[312317387,1705770644651,-10000.0,0.00041095,10]
[312317388,1705770644661,-521.74,0.00041095,31]
[312317389,1705770644670,-500.0,0.00041095,31]
[312317390,1705770644679,-500.0,0.00041095,31]
[312317391,1705770644688,-500.0,0.00041095,31]
[312317392,1705770644697,-500.0,0.00041095,31]
[312317393,1705770644707,-500.0,0.00041095,31]
[312317394,1705770644715,-1000.0,0.00041095,2]
[312317395,1705770644724,-687.89,0.00041095,31]
[312317396,1705770644734,-500.0,0.00041095,31]
[312317397,1705770644742,-501.74933043,0.00041095,31]
[312317398,1705770644752,-500.0,0.00041095,31]
[312317399,1705770644761,-503.42789075,0.00041095,31]
[312317400,1705770644770,-500.19418103,0.00041095,31]
[312317401,1705770644778,-721.31,0.00041095,31]
[312317402,1705770644787,-500.0,0.00041095,31]
[312317403,1705770644796,-695.1,0.00041095,31]
[312317404,1705770644805,-500.0,0.00041095,31]
[312317405,1705770644814,-500.0,0.00041095,31]
[312317406,1705770644823,-500.0,0.00041095,31]
[312317407,1705770644832,-500.0,0.00041095,31]
[312317408,1705770644841,-500.0,0.00041095,31]